[Event "Titled Tuesday Blitz December 27 Late 2022"]
[White "Fishbein, Alexander"]
[Black "Gorodetzky, David"]
[WhiteFideId "2000377"]
[BlackFideId "2813416"]
[WhiteElo "2366"]
[BlackElo "2485"]
[Result "0-1"]
[Round "03"]
[TimeControl "180+2"]
[Date "2022.12.27"]
[WhiteClock "0:00:01"]
[BlackClock "0:00:07"]

1. d4 {[%clk 0:02:55]}  Nf6 {[%clk 0:02:53]} 2. c4 {[%clk 0:02:46]}  b6 {[%clk 0:02:48]} 3. Nc3 {[%clk 0:02:37]}  Bb7 {[%clk 0:02:46]} 4. Nf3 {[%clk 0:02:33]}  e6 {[%clk 0:02:46]} 5. Bg5 {[%clk 0:02:23]}  Bb4 {[%clk 0:02:44]} 6. e3 {[%clk 0:02:17]}  h6 {[%clk 0:02:44]} 7. Bh4 {[%clk 0:02:12]}  g5 {[%clk 0:02:44]} 8. Bg3 {[%clk 0:02:01]}  Ne4 {[%clk 0:02:44]} 9. Qc2 {[%clk 0:02:00]}  Bxc3+ {[%clk 0:02:42]} 10. bxc3 {[%clk 0:01:58]}  d6 {[%clk 0:02:43]} 11. Bd3 {[%clk 0:01:45]}  Nxg3 {[%clk 0:02:43]} 12. hxg3 {[%clk 0:01:41]}  Nd7 {[%clk 0:02:44]} 13. c5 {[%clk 0:01:33]}  bxc5 {[%clk 0:02:43]} 14. Rb1 {[%clk 0:01:32]}  Rb8 {[%clk 0:02:43]} 15. O-O {[%clk 0:01:27]}  O-O {[%clk 0:02:30]} 16. Be4 {[%clk 0:01:19]}  Bxe4 {[%clk 0:02:27]} 17. Qxe4 {[%clk 0:01:19]}  d5 {[%clk 0:02:28]} 18. Qd3 {[%clk 0:01:12]}  cxd4 {[%clk 0:02:28]} 19. exd4 {[%clk 0:01:06]}  c5 {[%clk 0:02:28]} 20. c4 {[%clk 0:01:02]}  cxd4 {[%clk 0:02:12]} 21. Qxd4 {[%clk 0:01:00]}  Rxb1 {[%clk 0:01:54]} 22. Rxb1 {[%clk 0:00:59]}  Nb6 {[%clk 0:01:46]} 23. c5 {[%clk 0:00:57]}  Nc4 {[%clk 0:01:47]} 24. Ne5 {[%clk 0:00:56]}  Qf6 {[%clk 0:01:25]} 25. f4 {[%clk 0:00:55]}  Rc8 {[%clk 0:01:11]} 26. Rb7 {[%clk 0:00:52]}  Nxe5 {[%clk 0:01:10]} 27. fxe5 {[%clk 0:00:51]}  Qg7 {[%clk 0:00:56]} 28. g4 {[%clk 0:00:43]}  Qf8 {[%clk 0:00:55]} 29. c6 {[%clk 0:00:38]}  Rxc6 {[%clk 0:00:51]} 30. Qxa7 {[%clk 0:00:37]}  Qc5+ {[%clk 0:00:49]} 31. Qxc5 {[%clk 0:00:37]}  Rxc5 {[%clk 0:00:50]} 32. a4 {[%clk 0:00:32]}  Rc4 {[%clk 0:00:48]} 33. a5 {[%clk 0:00:31]}  Rxg4 {[%clk 0:00:36]} 34. a6 {[%clk 0:00:30]}  Ra4 {[%clk 0:00:37]} 35. a7 {[%clk 0:00:30]}  Kg7 {[%clk 0:00:37]} 36. Kf2 {[%clk 0:00:30]}  h5 {[%clk 0:00:37]} 37. Kf3 {[%clk 0:00:30]}  h4 {[%clk 0:00:34]} 38. Kf2 {[%clk 0:00:28]}  g4 {[%clk 0:00:28]} 39. Rd7 {[%clk 0:00:28]}  Kg6 {[%clk 0:00:27]} 40. Rb7 {[%clk 0:00:27]}  Ra2+ {[%clk 0:00:24]} 41. Ke3 {[%clk 0:00:26]}  Ra3+ {[%clk 0:00:23]} 42. Kd4 {[%clk 0:00:25]}  h3 {[%clk 0:00:21]} 43. gxh3 {[%clk 0:00:25]}  gxh3 {[%clk 0:00:22]} 44. Rb3 {[%clk 0:00:20]}  Rxa7 {[%clk 0:00:12]} 45. Rxh3 {[%clk 0:00:19]}  Rc7 {[%clk 0:00:13]} 46. Rg3+ {[%clk 0:00:19]}  Kf5 {[%clk 0:00:10]} 47. Rf3+ {[%clk 0:00:19]}  Kg4 {[%clk 0:00:11]} 48. Rf1 {[%clk 0:00:11]}  Rc4+ {[%clk 0:00:11]} 49. Kd3 {[%clk 0:00:11]}  Rf4 {[%clk 0:00:11]} 50. Rg1+ {[%clk 0:00:10]}  Kf5 {[%clk 0:00:12]} 51. Re1 {[%clk 0:00:04]}  Rg4 {[%clk 0:00:09]} 52. Rf1+ {[%clk 0:00:04]}  Kxe5 {[%clk 0:00:08]} 53. Rxf7 {[%clk 0:00:03]}  Rg3+ {[%clk 0:00:08]} 54. Kd2 {[%clk 0:00:03]}  Ke4 {[%clk 0:00:09]} 55. Rh7 {[%clk 0:00:03]}  Rg2+ {[%clk 0:00:07]} 56. Ke1 {[%clk 0:00:03]}  e5 {[%clk 0:00:05]} 57. Rh3 {[%clk 0:00:02]}  Ra2 {[%clk 0:00:05]} 58. Rb3 {[%clk 0:00:02]}  d4 {[%clk 0:00:05]} 59. Rh3 {[%clk 0:00:02]}  Kd5 {[%clk 0:00:05]} 60. Kd1 {[%clk 0:00:03]}  e4 {[%clk 0:00:05]} 61. Rh8 {[%clk 0:00:03]}  e3 {[%clk 0:00:05]} 62. Rd8+ {[%clk 0:00:04]}  Ke4 {[%clk 0:00:05]} 63. Re8+ {[%clk 0:00:03]}  Kd3 {[%clk 0:00:06]} 64. Kc1 {[%clk 0:00:03]}  e2 {[%clk 0:00:06]} 65. Kb1 {[%clk 0:00:01]}  Rd2 {[%clk 0:00:07]} 0-1


[Site "https://www.chess.com"]

[Event "Titled Tuesday Blitz December 27 Late 2022"]
[White "Gahan, M G"]
[Black "Vasquez Schroeder, Rodrigo"]
[WhiteFideId "5027373"]
[BlackFideId "3400042"]
[WhiteElo "2247"]
[BlackElo "2524"]
[Result "0-1"]
[Round "03"]
[TimeControl "180+2"]
[Date "2022.12.27"]
[WhiteClock "0:00:31"]
[BlackClock "0:01:18"]

1. e4 {[%clk 0:03:00]}  c5 {[%clk 0:02:55]} 2. c3 {[%clk 0:03:00]}  Nf6 {[%clk 0:02:55]} 3. e5 {[%clk 0:03:01]}  Nd5 {[%clk 0:02:55]} 4. d4 {[%clk 0:03:01]}  cxd4 {[%clk 0:02:55]} 5. cxd4 {[%clk 0:03:02]}  d6 {[%clk 0:02:55]} 6. Nf3 {[%clk 0:03:02]}  Nc6 {[%clk 0:02:55]} 7. Bc4 {[%clk 0:03:02]}  dxe5 {[%clk 0:02:56]} 8. dxe5 {[%clk 0:03:02]}  Ndb4 {[%clk 0:02:55]} 9. Qb3 {[%clk 0:03:01]}  e6 {[%clk 0:02:55]} 10. O-O {[%clk 0:03:00]}  Na5 {[%clk 0:02:55]} 11. Bb5+ {[%clk 0:03:00]}  Bd7 {[%clk 0:02:55]} 12. Qa4 {[%clk 0:03:00]}  Bxb5 {[%clk 0:02:52]} 13. Qxb5+ {[%clk 0:03:01]}  Nac6 {[%clk 0:02:52]} 14. Nc3 {[%clk 0:02:58]}  a6 {[%clk 0:02:51]} 15. Qa4 {[%clk 0:02:52]}  b5 {[%clk 0:02:46]} 16. Qd1 {[%clk 0:02:48]}  Qxd1 {[%clk 0:02:31]} 17. Rxd1 {[%clk 0:02:48]}  Rd8 {[%clk 0:02:31]} 18. Bg5 {[%clk 0:02:42]}  Be7 {[%clk 0:02:31]} 19. Rxd8+ {[%clk 0:02:28]}  Nxd8 {[%clk 0:02:29]} 20. Rd1 {[%clk 0:02:19]}  Nbc6 {[%clk 0:02:19]} 21. Ne4 {[%clk 0:02:15]}  h6 {[%clk 0:02:15]} 22. Bxe7 {[%clk 0:02:09]}  Kxe7 {[%clk 0:02:15]} 23. Nc5 {[%clk 0:02:09]}  Nb8 {[%clk 0:02:15]} 24. b4 {[%clk 0:01:47]}  Ndc6 {[%clk 0:02:12]} 25. a3 {[%clk 0:01:47]}  Rd8 {[%clk 0:02:11]} 26. Rxd8 {[%clk 0:01:43]}  Kxd8 {[%clk 0:02:10]} 27. Kf1 {[%clk 0:01:40]}  Kc7 {[%clk 0:02:10]} 28. Ke2 {[%clk 0:01:38]}  a5 {[%clk 0:02:11]} 29. Nd3 {[%clk 0:01:34]}  axb4 {[%clk 0:02:10]} 30. axb4 {[%clk 0:01:35]}  Na6 {[%clk 0:02:10]} 31. Ke3 {[%clk 0:01:32]}  Ncxb4 {[%clk 0:02:07]} 32. Nf4 {[%clk 0:01:25]}  g6 {[%clk 0:02:00]} 33. Nd4 {[%clk 0:01:20]}  Kb6 {[%clk 0:02:00]} 34. g4 {[%clk 0:01:13]}  Nc7 {[%clk 0:01:59]} 35. Ke4 {[%clk 0:01:11]}  Nc6 {[%clk 0:01:56]} 36. Nb3 {[%clk 0:01:06]}  Na6 {[%clk 0:01:54]} 37. Nd3 {[%clk 0:01:05]}  Ncb4 {[%clk 0:01:53]} 38. Nxb4 {[%clk 0:01:02]}  Nxb4 {[%clk 0:01:53]} 39. f4 {[%clk 0:01:02]}  Nc6 {[%clk 0:01:51]} 40. h4 {[%clk 0:01:00]}  b4 {[%clk 0:01:48]} 41. h5 {[%clk 0:00:51]}  gxh5 {[%clk 0:01:47]} 42. gxh5 {[%clk 0:00:52]}  Ne7 {[%clk 0:01:28]} 43. Kd4 {[%clk 0:00:48]}  Kb5 {[%clk 0:01:28]} 44. Nd2 {[%clk 0:00:45]}  Nf5+ {[%clk 0:01:27]} 45. Kd3 {[%clk 0:00:44]}  Ng3 {[%clk 0:01:27]} 46. Nf3 {[%clk 0:00:40]}  Nxh5 {[%clk 0:01:26]} 47. Nd4+ {[%clk 0:00:39]}  Kc5 {[%clk 0:01:27]} 48. Ke4 {[%clk 0:00:39]}  Nxf4 {[%clk 0:01:22]} 49. Nb3+ {[%clk 0:00:39]}  Kc4 {[%clk 0:01:22]} 50. Na5+ {[%clk 0:00:36]}  Kb5 {[%clk 0:01:23]} 51. Nb7 {[%clk 0:00:36]}  b3 {[%clk 0:01:19]} 52. Nd6+ {[%clk 0:00:37]}  Kb4 {[%clk 0:01:19]} 53. Kxf4 {[%clk 0:00:31]}  b2 {[%clk 0:01:18]} 0-1


[Site "https://www.chess.com"]

[Event "Titled Tuesday Blitz December 27 Late 2022"]
[White "Gasanov, Eldar"]
[Black "Fisher_TheGalactic"]
[WhiteFideId "14104466"]
[WhiteElo "2481"]
[BlackElo "2477"]
[Result "1-0"]
[Round "03"]
[TimeControl "180+2"]
[Date "2022.12.27"]
[WhiteClock "0:00:56"]
[BlackClock "0:00:44"]

1. d4 {[%clk 0:03:00]}  d5 {[%clk 0:02:47]} 2. c4 {[%clk 0:02:59]}  e6 {[%clk 0:02:47]} 3. Nf3 {[%clk 0:03:00]}  Nf6 {[%clk 0:02:46]} 4. e3 {[%clk 0:03:00]}  Be7 {[%clk 0:02:46]} 5. a3 {[%clk 0:03:01]}  O-O {[%clk 0:02:46]} 6. b4 {[%clk 0:03:01]}  c6 {[%clk 0:02:45]} 7. Bb2 {[%clk 0:02:57]}  Nbd7 {[%clk 0:02:46]} 8. Nbd2 {[%clk 0:02:55]}  Ne4 {[%clk 0:02:36]} 9. Bd3 {[%clk 0:02:50]}  f5 {[%clk 0:02:36]} 10. O-O {[%clk 0:02:48]}  Bd6 {[%clk 0:02:34]} 11. Qc2 {[%clk 0:02:42]}  Qe7 {[%clk 0:02:30]} 12. Ne5 {[%clk 0:02:38]}  Nxe5 {[%clk 0:02:21]} 13. dxe5 {[%clk 0:02:38]}  Bc7 {[%clk 0:02:21]} 14. Nb3 {[%clk 0:02:34]}  Ng5 {[%clk 0:02:08]} 15. b5 {[%clk 0:02:23]}  Bd7 {[%clk 0:02:01]} 16. a4 {[%clk 0:02:19]}  Rac8 {[%clk 0:01:57]} 17. Ba3 {[%clk 0:02:15]}  Qf7 {[%clk 0:01:50]} 18. Bxf8 {[%clk 0:02:15]}  Rxf8 {[%clk 0:01:50]} 19. f4 {[%clk 0:02:07]}  Ne4 {[%clk 0:01:48]} 20. cxd5 {[%clk 0:01:58]}  exd5 {[%clk 0:01:47]} 21. Nd4 {[%clk 0:01:57]}  Bb6 {[%clk 0:01:40]} 22. a5 {[%clk 0:01:45]}  Bxd4 {[%clk 0:01:34]} 23. exd4 {[%clk 0:01:46]}  cxb5 {[%clk 0:01:34]} 24. a6 {[%clk 0:01:45]}  b6 {[%clk 0:01:30]} 25. Qc7 {[%clk 0:01:43]}  Be8 {[%clk 0:01:16]} 26. Rfc1 {[%clk 0:01:40]}  b4 {[%clk 0:01:15]} 27. Qb7 {[%clk 0:01:36]}  Nc3 {[%clk 0:01:11]} 28. Rc2 {[%clk 0:01:24]}  Bb5 {[%clk 0:01:08]} 29. Rxc3 {[%clk 0:01:20]}  bxc3 {[%clk 0:01:06]} 30. Bxb5 {[%clk 0:01:20]}  Qh5 {[%clk 0:00:53]} 31. Qxd5+ {[%clk 0:01:18]}  Kh8 {[%clk 0:00:53]} 32. Qc4 {[%clk 0:01:12]}  Qg4 {[%clk 0:00:53]} 33. d5 {[%clk 0:01:11]}  c2 {[%clk 0:00:50]} 34. Qxc2 {[%clk 0:01:06]}  Qxf4 {[%clk 0:00:50]} 35. Qc3 {[%clk 0:01:06]}  Qe4 {[%clk 0:00:45]} 36. d6 {[%clk 0:01:04]}  f4 {[%clk 0:00:45]} 37. Re1 {[%clk 0:01:00]}  Qd5 {[%clk 0:00:45]} 38. Qc4 {[%clk 0:00:57]}  Qd2 {[%clk 0:00:45]} 39. Qe2 {[%clk 0:00:57]}  Qd4+ {[%clk 0:00:44]} 40. Qf2 {[%clk 0:00:57]}  Qd5 {[%clk 0:00:44]} 41. Bf1 {[%clk 0:00:56]}  f3 {[%clk 0:00:44]} 42. gxf3 {[%clk 0:00:56]} 1-0


[Site "https://www.chess.com"]

[Event "Titled Tuesday Blitz December 27 Late 2022"]
[White "Gascon Del Nogal, Jose Rafael"]
[Black "Prieto Aranguren, Alain"]
[WhiteFideId "3902463"]
[BlackFideId "2268906"]
[WhiteElo "2459"]
[BlackElo "2258"]
[Result "1-0"]
[Round "03"]
[TimeControl "180+2"]
[Date "2022.12.27"]
[WhiteClock "0:00:30"]
[BlackClock "0:00:59"]

1. e4 {[%clk 0:03:00]}  c6 {[%clk 0:02:58]} 2. Nf3 {[%clk 0:02:58]}  d5 {[%clk 0:02:58]} 3. d3 {[%clk 0:02:59]}  g6 {[%clk 0:02:58]} 4. h3 {[%clk 0:02:56]}  Bg7 {[%clk 0:02:57]} 5. e5 {[%clk 0:02:56]}  c5 {[%clk 0:02:56]} 6. c3 {[%clk 0:02:20]}  Nc6 {[%clk 0:02:56]} 7. d4 {[%clk 0:02:19]}  cxd4 {[%clk 0:02:56]} 8. cxd4 {[%clk 0:02:20]}  Bf5 {[%clk 0:02:54]} 9. a3 {[%clk 0:02:18]}  Qb6 {[%clk 0:02:52]} 10. Nc3 {[%clk 0:02:16]}  e6 {[%clk 0:02:51]} 11. Na4 {[%clk 0:02:15]}  Qd8 {[%clk 0:02:43]} 12. Be2 {[%clk 0:02:05]}  Nge7 {[%clk 0:02:41]} 13. O-O {[%clk 0:02:03]}  O-O {[%clk 0:02:41]} 14. Bg5 {[%clk 0:01:54]}  f6 {[%clk 0:02:39]} 15. exf6 {[%clk 0:01:54]}  Bxf6 {[%clk 0:02:39]} 16. Bxf6 {[%clk 0:01:54]}  Rxf6 {[%clk 0:02:39]} 17. Nc5 {[%clk 0:01:34]}  Qc7 {[%clk 0:02:14]} 18. Rc1 {[%clk 0:01:27]}  Raf8 {[%clk 0:02:00]} 19. Ne5 {[%clk 0:01:20]}  Qd6 {[%clk 0:01:45]} 20. Ncd7 {[%clk 0:01:18]}  Nxe5 {[%clk 0:01:38]} 21. dxe5 {[%clk 0:01:04]}  Qxd7 {[%clk 0:01:38]} 22. exf6 {[%clk 0:01:04]}  Rxf6 {[%clk 0:01:38]} 23. Qd4 {[%clk 0:01:04]}  Rf7 {[%clk 0:01:35]} 24. Qxa7 {[%clk 0:01:03]}  Nc6 {[%clk 0:01:35]} 25. Qc5 {[%clk 0:00:59]}  e5 {[%clk 0:01:16]} 26. Bb5 {[%clk 0:00:53]}  Bxh3 {[%clk 0:01:03]} 27. gxh3 {[%clk 0:00:37]}  Qxh3 {[%clk 0:01:01]} 28. Qxd5 {[%clk 0:00:33]}  Kg7 {[%clk 0:00:59]} 29. Rc3 {[%clk 0:00:30]} 1-0


[Site "https://www.chess.com"]

[Event "Titled Tuesday Blitz December 27 Late 2022"]
[White "Gerbelli Neto, Eduardo"]
[Black "Kavutskiy, Konstantin"]
[WhiteFideId "2103281"]
[BlackFideId "2026384"]
[WhiteElo "2114"]
[BlackElo "2414"]
[Result "1-0"]
[Round "03"]
[TimeControl "180+2"]
[Date "2022.12.27"]
[WhiteClock "0:00:09"]
[BlackClock "0:00:07"]

1. e4 {[%clk 0:02:55]}  Nc6 {[%clk 0:02:56]} 2. d4 {[%clk 0:02:54]}  d6 {[%clk 0:02:56]} 3. Nf3 {[%clk 0:02:54]}  Nf6 {[%clk 0:02:55]} 4. Nc3 {[%clk 0:02:45]}  g6 {[%clk 0:02:56]} 5. Bb5 {[%clk 0:02:36]}  a6 {[%clk 0:02:55]} 6. Bxc6+ {[%clk 0:02:35]}  bxc6 {[%clk 0:02:55]} 7. e5 {[%clk 0:02:36]}  Nd7 {[%clk 0:02:52]} 8. e6 {[%clk 0:02:26]}  fxe6 {[%clk 0:02:51]} 9. Ng5 {[%clk 0:02:25]}  Nf6 {[%clk 0:02:51]} 10. Qe2 {[%clk 0:02:26]}  Bg7 {[%clk 0:02:44]} 11. Nxe6 {[%clk 0:02:25]}  Bxe6 {[%clk 0:02:44]} 12. Qxe6 {[%clk 0:02:26]}  Qd7 {[%clk 0:02:44]} 13. Qxd7+ {[%clk 0:02:18]}  Nxd7 {[%clk 0:02:43]} 14. Be3 {[%clk 0:02:18]}  Rb8 {[%clk 0:02:41]} 15. O-O-O {[%clk 0:02:17]}  O-O {[%clk 0:02:37]} 16. Rhe1 {[%clk 0:02:10]}  Nb6 {[%clk 0:02:36]} 17. b3 {[%clk 0:02:04]}  c5 {[%clk 0:02:34]} 18. f3 {[%clk 0:01:52]}  cxd4 {[%clk 0:02:22]} 19. Bxd4 {[%clk 0:01:53]}  Bxd4 {[%clk 0:02:18]} 20. Rxd4 {[%clk 0:01:54]}  e5 {[%clk 0:02:18]} 21. Rd2 {[%clk 0:01:48]}  Rf4 {[%clk 0:02:17]} 22. Nd5 {[%clk 0:01:45]}  Nxd5 {[%clk 0:02:16]} 23. Rxd5 {[%clk 0:01:46]}  Kf7 {[%clk 0:02:14]} 24. c4 {[%clk 0:01:40]}  Ke6 {[%clk 0:02:11]} 25. Red1 {[%clk 0:01:40]}  g5 {[%clk 0:01:43]} 26. c5 {[%clk 0:01:40]}  Rb5 {[%clk 0:01:34]} 27. Kb2 {[%clk 0:01:08]}  g4 {[%clk 0:01:21]} 28. fxg4 {[%clk 0:00:58]}  Rxg4 {[%clk 0:01:20]} 29. g3 {[%clk 0:00:58]}  Rxc5 {[%clk 0:01:19]} 30. Rxc5 {[%clk 0:00:58]}  dxc5 {[%clk 0:01:20]} 31. Rc1 {[%clk 0:00:48]}  Kd6 {[%clk 0:01:19]} 32. Rf1 {[%clk 0:00:47]}  Re4 {[%clk 0:01:14]} 33. Rf2 {[%clk 0:00:46]}  Kd5 {[%clk 0:01:10]} 34. Kc3 {[%clk 0:00:46]}  Re3+ {[%clk 0:01:08]} 35. Kd2 {[%clk 0:00:45]}  Kd4 {[%clk 0:01:04]} 36. Rf7 {[%clk 0:00:45]}  Rd3+ {[%clk 0:01:02]} 37. Kc2 {[%clk 0:00:40]}  e4 {[%clk 0:01:00]} 38. Rxh7 {[%clk 0:00:32]}  Ke3 {[%clk 0:00:52]} 39. Rxc7 {[%clk 0:00:22]}  Rd2+ {[%clk 0:00:52]} 40. Kc3 {[%clk 0:00:22]}  Rxh2 {[%clk 0:00:53]} 41. Rxc5 {[%clk 0:00:21]}  Rxa2 {[%clk 0:00:52]} 42. g4 {[%clk 0:00:20]}  Kf2 {[%clk 0:00:45]} 43. g5 {[%clk 0:00:20]}  e3 {[%clk 0:00:45]} 44. g6 {[%clk 0:00:19]}  e2 {[%clk 0:00:39]} 45. Rf5+ {[%clk 0:00:17]}  Kg3 {[%clk 0:00:30]} 46. Re5 {[%clk 0:00:16]}  Kf4 {[%clk 0:00:30]} 47. Re8 {[%clk 0:00:14]}  Ra1 {[%clk 0:00:20]} 48. Rxe2 {[%clk 0:00:13]}  Rg1 {[%clk 0:00:21]} 49. Re6 {[%clk 0:00:14]}  a5 {[%clk 0:00:21]} 50. Kc4 {[%clk 0:00:13]}  Kf5 {[%clk 0:00:21]} 51. Ra6 {[%clk 0:00:13]}  Ke4 {[%clk 0:00:21]} 52. Kb5 {[%clk 0:00:12]}  Rg5+ {[%clk 0:00:20]} 53. Ka4 {[%clk 0:00:12]}  Kd4 {[%clk 0:00:19]} 54. Rb6 {[%clk 0:00:12]}  Kc3 {[%clk 0:00:18]} 55. Rc6+ {[%clk 0:00:11]}  Kb2 {[%clk 0:00:17]} 56. Ra6 {[%clk 0:00:11]}  Kc3 {[%clk 0:00:16]} 57. Rxa5 {[%clk 0:00:11]}  Rg4+ {[%clk 0:00:09]} 58. Ka3 {[%clk 0:00:08]}  Rxg6 {[%clk 0:00:09]} 59. Rc5+ {[%clk 0:00:08]}  Kd4 {[%clk 0:00:10]} 60. b4 {[%clk 0:00:08]}  Ra6+ {[%clk 0:00:09]} 61. Kb3 {[%clk 0:00:08]}  Ra8 {[%clk 0:00:08]} 62. Rc1 {[%clk 0:00:09]}  Kd5 {[%clk 0:00:07]} 63. b5 {[%clk 0:00:09]}  Kd6 {[%clk 0:00:07]} 64. Kb4 {[%clk 0:00:09]} 1-0


[Site "https://www.chess.com"]

[Event "Titled Tuesday Blitz December 27 Late 2022"]
[White "Goltsev, Dmitry"]
[Black "Baskakov, Egor"]
[WhiteFideId "24176710"]
[BlackFideId "24197866"]
[WhiteElo "2269"]
[BlackElo "2215"]
[Result "0-1"]
[Round "03"]
[TimeControl "180+2"]
[Date "2022.12.27"]
[WhiteClock "0:00:02"]
[BlackClock "0:00:10"]

1. e4 {[%clk 0:03:00]}  c5 {[%clk 0:03:00]} 2. Nf3 {[%clk 0:03:01]}  Nf6 {[%clk 0:03:00]} 3. d4 {[%clk 0:03:01]}  Nxe4 {[%clk 0:03:01]} 4. dxc5 {[%clk 0:03:02]}  Nxc5 {[%clk 0:03:00]} 5. b3 {[%clk 0:03:02]}  Nc6 {[%clk 0:02:59]} 6. Bb2 {[%clk 0:03:02]}  d5 {[%clk 0:02:59]} 7. Be2 {[%clk 0:03:02]}  Bg4 {[%clk 0:02:59]} 8. O-O {[%clk 0:03:02]}  e6 {[%clk 0:02:56]} 9. h3 {[%clk 0:03:02]}  Bh5 {[%clk 0:02:56]} 10. Nbd2 {[%clk 0:03:01]}  Qc7 {[%clk 0:02:48]} 11. Re1 {[%clk 0:03:01]}  f6 {[%clk 0:02:41]} 12. c4 {[%clk 0:02:52]}  dxc4 {[%clk 0:02:40]} 13. Bxc4 {[%clk 0:02:53]}  e5 {[%clk 0:02:37]} 14. Nxe5 {[%clk 0:01:29]}  Bxd1 {[%clk 0:02:23]} 15. Nxc6+ {[%clk 0:01:29]}  Kd7 {[%clk 0:02:18]} 16. Raxd1 {[%clk 0:01:26]}  Kxc6 {[%clk 0:02:17]} 17. b4 {[%clk 0:01:25]}  Rd8 {[%clk 0:01:47]} 18. bxc5 {[%clk 0:01:16]}  Bxc5 {[%clk 0:01:48]} 19. Ne4 {[%clk 0:01:01]}  Rxd1 {[%clk 0:01:44]} 20. Rxd1 {[%clk 0:01:02]}  Rd8 {[%clk 0:01:42]} 21. Rc1 {[%clk 0:01:02]}  b6 {[%clk 0:01:33]} 22. Be2 {[%clk 0:00:51]}  Qf4 {[%clk 0:01:21]} 23. Bf3 {[%clk 0:00:42]}  Kd7 {[%clk 0:00:57]} 24. Rc4 {[%clk 0:00:20]}  Ke7 {[%clk 0:00:38]} 25. Be2 {[%clk 0:00:21]}  Qc7 {[%clk 0:00:28]} 26. Ba3 {[%clk 0:00:11]}  Rd5 {[%clk 0:00:28]} 27. Bf3 {[%clk 0:00:10]}  Re5 {[%clk 0:00:27]} 28. g3 {[%clk 0:00:06]}  Kf7 {[%clk 0:00:23]} 29. Nxc5 {[%clk 0:00:04]}  bxc5 {[%clk 0:00:23]} 30. Kg2 {[%clk 0:00:04]}  Qa5 {[%clk 0:00:19]} 31. Bb2 {[%clk 0:00:02]}  Qxa2 {[%clk 0:00:18]} 32. Rc2 {[%clk 0:00:02]}  Qb3 {[%clk 0:00:18]} 33. Rd2 {[%clk 0:00:02]}  c4 {[%clk 0:00:15]} 34. Bxe5 {[%clk 0:00:02]}  fxe5 {[%clk 0:00:15]} 35. g4 {[%clk 0:00:01]}  Ke7 {[%clk 0:00:12]} 36. Bd5 {[%clk 0:00:02]}  Qb4 {[%clk 0:00:11]} 37. Rd1 {[%clk 0:00:02]}  c3 {[%clk 0:00:11]} 38. Bf3 {[%clk 0:00:02]}  c2 {[%clk 0:00:11]} 39. Rd5 {[%clk 0:00:01]}  Qc3 {[%clk 0:00:10]} 40. Rxe5+ {[%clk 0:00:02]}  Qxe5 {[%clk 0:00:10]} 0-1


[Site "https://www.chess.com"]

[Event "Titled Tuesday Blitz December 27 Late 2022"]
[White "Goncalves, Davi Sulzbacher"]
[Black "Kaganskiy, Gleb"]
[WhiteFideId "2154510"]
[BlackFideId "4132025"]
[WhiteElo "2282"]
[BlackElo "2205"]
[Result "1-0"]
[Round "03"]
[TimeControl "180+2"]
[Date "2022.12.27"]
[WhiteClock "0:00:29"]
[BlackClock "0:00:24"]

1. b3 {[%clk 0:03:00]}  e5 {[%clk 0:02:49]} 2. Bb2 {[%clk 0:03:01]}  Nc6 {[%clk 0:02:42]} 3. e3 {[%clk 0:03:01]}  d5 {[%clk 0:02:41]} 4. Bb5 {[%clk 0:03:00]}  Bd6 {[%clk 0:02:40]} 5. Nf3 {[%clk 0:02:58]}  f6 {[%clk 0:02:35]} 6. c4 {[%clk 0:02:58]}  Be6 {[%clk 0:02:31]} 7. cxd5 {[%clk 0:02:48]}  Bxd5 {[%clk 0:02:30]} 8. Nc3 {[%clk 0:02:48]}  Be6 {[%clk 0:02:27]} 9. d4 {[%clk 0:02:47]}  exd4 {[%clk 0:02:24]} 10. Nxd4 {[%clk 0:02:43]}  Bd7 {[%clk 0:02:22]} 11. Nxc6 {[%clk 0:02:41]}  bxc6 {[%clk 0:02:12]} 12. Bc4 {[%clk 0:02:30]}  Nh6 {[%clk 0:02:07]} 13. Qh5+ {[%clk 0:02:24]}  Kf8 {[%clk 0:02:05]} 14. Ne4 {[%clk 0:02:13]}  Bb4+ {[%clk 0:01:52]} 15. Kf1 {[%clk 0:02:11]}  Qe8 {[%clk 0:01:43]} 16. Nxf6 {[%clk 0:02:00]}  Qxh5 {[%clk 0:01:24]} 17. Nxh5 {[%clk 0:02:01]}  Nf5 {[%clk 0:01:21]} 18. e4 {[%clk 0:02:01]}  Be8 {[%clk 0:01:14]} 19. Nf4 {[%clk 0:01:54]}  Nd6 {[%clk 0:01:03]} 20. Ne6+ {[%clk 0:01:39]}  Ke7 {[%clk 0:01:02]} 21. Nxg7 {[%clk 0:01:39]}  Rf8 {[%clk 0:01:00]} 22. Bd3 {[%clk 0:01:30]}  Bg6 {[%clk 0:00:57]} 23. f3 {[%clk 0:01:06]}  Bxe4 {[%clk 0:00:48]} 24. Ke2 {[%clk 0:01:05]}  Bxd3+ {[%clk 0:00:46]} 25. Kxd3 {[%clk 0:01:06]}  Rad8 {[%clk 0:00:41]} 26. Rhe1+ {[%clk 0:01:01]}  Bxe1 {[%clk 0:00:39]} 27. Rxe1+ {[%clk 0:01:02]}  Kf7 {[%clk 0:00:39]} 28. Ne6 {[%clk 0:01:02]}  Ne4+ {[%clk 0:00:29]} 29. Kc4 {[%clk 0:00:52]}  Kxe6 {[%clk 0:00:25]} 30. Rxe4+ {[%clk 0:00:51]}  Kf7 {[%clk 0:00:22]} 31. Rh4 {[%clk 0:00:51]}  Kg6 {[%clk 0:00:22]} 32. Rg4+ {[%clk 0:00:51]}  Kf5 {[%clk 0:00:20]} 33. Rg7 {[%clk 0:00:48]}  Rg8 {[%clk 0:00:17]} 34. g4+ {[%clk 0:00:44]}  Kf4 {[%clk 0:00:16]} 35. Rf7+ {[%clk 0:00:44]}  Ke3 {[%clk 0:00:16]} 36. h4 {[%clk 0:00:32]}  Rd1 {[%clk 0:00:12]} 37. g5 {[%clk 0:00:31]}  Rf1 {[%clk 0:00:11]} 38. Bd4+ {[%clk 0:00:25]}  Kd2 {[%clk 0:00:08]} 39. f4 {[%clk 0:00:24]}  Rc1+ {[%clk 0:00:05]} 40. Kb4 {[%clk 0:00:24]}  Rb8+ {[%clk 0:00:03]} 41. Ka3 {[%clk 0:00:22]}  Rh1 {[%clk 0:00:04]} 42. Rxc7 {[%clk 0:00:19]}  Rxh4 {[%clk 0:00:04]} 43. Be5 {[%clk 0:00:19]}  Rh1 {[%clk 0:00:04]} 44. Rd7+ {[%clk 0:00:20]}  Kc2 {[%clk 0:00:03]} 45. Bxb8 {[%clk 0:00:21]}  Rf1 {[%clk 0:00:03]} 46. Be5 {[%clk 0:00:21]}  Rf3 {[%clk 0:00:03]} 47. Rxa7 {[%clk 0:00:21]}  c5 {[%clk 0:00:04]} 48. Rxh7 {[%clk 0:00:21]}  c4 {[%clk 0:00:04]} 49. Rc7 {[%clk 0:00:21]}  c3 {[%clk 0:00:03]} 50. g6 {[%clk 0:00:21]}  Kd3 {[%clk 0:00:03]} 51. Rxc3+ {[%clk 0:00:22]}  Ke2 {[%clk 0:00:03]} 52. Rxf3 {[%clk 0:00:22]}  Kxf3 {[%clk 0:00:04]} 53. g7 {[%clk 0:00:23]}  Kg4 {[%clk 0:00:04]} 54. g8=Q+ {[%clk 0:00:24]}  Kf5 {[%clk 0:00:05]} 55. Qf7+ {[%clk 0:00:23]}  Ke4 {[%clk 0:00:06]} 56. Bh8 {[%clk 0:00:23]}  Kf3 {[%clk 0:00:07]} 57. f5 {[%clk 0:00:22]}  Ke4 {[%clk 0:00:08]} 58. f6 {[%clk 0:00:23]}  Kd3 {[%clk 0:00:09]} 59. Kb4 {[%clk 0:00:24]}  Kc2 {[%clk 0:00:10]} 60. a4 {[%clk 0:00:24]}  Kb1 {[%clk 0:00:11]} 61. a5 {[%clk 0:00:25]}  Ka2 {[%clk 0:00:11]} 62. a6 {[%clk 0:00:26]}  Kb1 {[%clk 0:00:12]} 63. a7 {[%clk 0:00:27]}  Ka2 {[%clk 0:00:13]} 64. Qh5 {[%clk 0:00:27]}  Kb1 {[%clk 0:00:13]} 65. Qe2 {[%clk 0:00:27]}  Kc1 {[%clk 0:00:12]} 66. Kc4 {[%clk 0:00:28]}  Kb1 {[%clk 0:00:12]} 67. b4 {[%clk 0:00:29]}  Kc1 {[%clk 0:00:13]} 68. b5 {[%clk 0:00:30]}  Kb1 {[%clk 0:00:14]} 69. b6 {[%clk 0:00:31]}  Kc1 {[%clk 0:00:15]} 70. b7 {[%clk 0:00:32]}  Kb1 {[%clk 0:00:16]} 71. Bg7 {[%clk 0:00:31]}  Kc1 {[%clk 0:00:16]} 72. Bh6+ {[%clk 0:00:31]}  Kb1 {[%clk 0:00:17]} 73. Qd2 {[%clk 0:00:31]}  Ka1 {[%clk 0:00:17]} 74. f7 {[%clk 0:00:32]}  Kb1 {[%clk 0:00:17]} 75. f8=Q {[%clk 0:00:32]}  Ka1 {[%clk 0:00:18]} 76. Qc8 {[%clk 0:00:32]}  Kb1 {[%clk 0:00:19]} 77. Kd5 {[%clk 0:00:29]}  Ka1 {[%clk 0:00:20]} 78. Ke6 {[%clk 0:00:29]}  Kb1 {[%clk 0:00:21]} 79. Ke7 {[%clk 0:00:29]}  Ka1 {[%clk 0:00:22]} 80. Ke8 {[%clk 0:00:30]}  Kb1 {[%clk 0:00:23]} 81. b8=Q+ {[%clk 0:00:29]}  Ka1 {[%clk 0:00:24]} 82. a8=Q# {[%clk 0:00:29]} 1-0


[Site "https://www.chess.com"]